[Event "Campeonato de España Universitario Relámpago"]
[Site "Zaragoza, Spain"]
[Date "2024.04.24"]
[Round "3.5"]
[White "Carbonell Sancho, Marc"]
[Black "Serrano Almendros, Alejandro"]
[Result "1-0"]
[TimeControl "3 min + 2 sg"]
[WhiteFideId "32029969"]
[BlackFideId "24561576"]
[WhiteElo "2279"]
[BlackElo "2078"]

1. Nf3 {[%clk 00:03:02]} {[%emt 00:00:02]} d5 {[%clk 00:03:03]} {[%emt
00:00:01]} 2. g3 {[%clk 00:03:03]} Nf6 {[%clk 00:02:46]} {[%emt 00:00:20]} 3.
Bg2 {[%clk 00:03:03]} {[%emt 00:00:01]} e6 {[%clk 00:02:47]} {[%emt 00:00:02]}
4. O-O {[%clk 00:03:03]} {[%emt 00:00:02]} c5 {[%clk 00:02:46]} {[%emt
00:00:02]} 5. d3 {[%clk 00:03:04]} {[%emt 00:00:01]} Nc6 {[%clk 00:02:38]}
{[%emt 00:00:11]} 6. Nbd2 {[%clk 00:03:04]} {[%emt 00:00:02]} g6 {[%clk
00:02:39]} {[%emt 00:00:01]} 7. e4 {[%clk 00:03:04]} {[%emt 00:00:02]} Bg7
{[%clk 00:02:39]} {[%emt 00:00:02]} 8. Re1 {[%clk 00:03:05]} {[%emt 00:00:01]}
O-O {[%clk 00:02:34]} {[%emt 00:00:07]} 9. c3 {[%clk 00:03:04]} {[%emt
00:00:02]} a5 {[%clk 00:02:35]} {[%emt 00:00:01]} 10. a4 {[%clk 00:02:37]}
{[%emt 00:00:29]} Qc7 {[%clk 00:02:02]} {[%emt 00:00:35]} 11. Nb1 {[%clk
00:02:34]} {[%emt 00:00:05]} d4 {[%clk 00:01:53]} {[%emt 00:00:11]} 12. Na3
{[%clk 00:02:31]} {[%emt 00:00:06]} Nd7 {[%clk 00:01:38]} {[%emt 00:00:16]} 13.
Nb5 {[%clk 00:02:28]} {[%emt 00:00:05]} Qb6 {[%clk 00:01:27]} {[%emt 00:00:13]}
14. h4 {[%clk 00:02:22]} {[%emt 00:00:08]} Na7 {[%clk 00:01:21]} {[%emt
00:00:09]} 15. c4 {[%clk 00:02:04]} {[%emt 00:00:20]} Nc6 {[%clk 00:01:21]}
{[%emt 00:00:02]} 16. h5 {[%clk 00:02:04]} e5 {[%clk 00:01:06]} {[%emt
00:00:18]} 17. Nh4 {[%clk 00:02:00]} {[%emt 00:00:06]} Nf6 {[%clk 00:00:57]}
{[%emt 00:00:11]} 18. h6 {[%clk 00:01:35]} {[%emt 00:00:27]} Bh8 {[%clk
00:00:58]} {[%emt 00:00:01]} 19. f4 {[%clk 00:01:36]} Ng4 {[%clk 00:00:55]}
{[%emt 00:00:05]} 20. Bh3 {[%clk 00:01:17]} {[%emt 00:00:21]} Ne3 {[%clk
00:00:24]} {[%emt 00:00:33]} 21. Bxe3 {[%clk 00:01:05]} {[%emt 00:00:15]} Bxh3
{[%clk 00:00:25]} 22. Bd2 {[%clk 00:00:55]} {[%emt 00:00:12]} Qd8 {[%clk
00:00:26]} {[%emt 00:00:01]} 23. f5 {[%clk 00:00:37]} {[%emt 00:00:20]} Bf6
{[%clk 00:00:28]} 24. Nf3 {[%clk 00:00:26]} {[%emt 00:00:14]} Bg4 {[%clk
00:00:28]} {[%emt 00:00:02]} 25. Qe2 {[%clk 00:00:26]} {[%emt 00:00:02]} gxf5
{[%clk 00:00:26]} {[%emt 00:00:04]} 26. exf5 {[%clk 00:00:19]} {[%emt
00:00:09]} Bxf5 {[%clk 00:00:22]} {[%emt 00:00:06]} 27. Rf1 {[%clk 00:00:20]}
Bg4 {[%clk 00:00:22]} {[%emt 00:00:02]} 28. Qe4 {[%clk 00:00:20]} {[%emt
00:00:02]} Qd7 {[%clk 00:00:21]} {[%emt 00:00:03]} 29. Nc7 {[%clk 00:00:20]}
{[%emt 00:00:02]} Bf5 {[%clk 00:00:16]} {[%emt 00:00:07]} 30. Nxe5 {[%clk
00:00:17]} {[%emt 00:00:05]} Bxe5 {[%clk 00:00:10]} {[%emt 00:00:08]} 31. Rxf5
{[%clk 00:00:13]} {[%emt 00:00:06]} Bxc7 {[%clk 00:00:10]} {[%emt 00:00:02]} 32.
Qg4+ {[%clk 00:00:12]} {[%emt 00:00:02]} 1-0

[ePGN "0.1;DGT LiveChess/2.2.6"]

[Event "Campeonato de España Universitario Relámpago"]
[Site "Zaragoza, Spain"]
[Date "2024.04.24"]
[Round "4.1"]
[White "Lianes Garcia, Marcos"]
[Black "Carbonell Sancho, Marc"]
[Result "1-0"]
[TimeControl "3 min + 2 sg"]
[WhiteFideId "32060777"]
[BlackFideId "32029969"]
[WhiteElo "2382"]
[BlackElo "2279"]

1. e4 {[%clk 00:03:02]} {[%emt 00:00:01]} d6 {[%clk 00:03:03]} {[%emt
00:00:01]} 2. g3 {[%clk 00:03:03]} {[%emt 00:00:02]} g6 {[%clk 00:02:58]}
{[%emt 00:00:07]} 3. Bg2 {[%clk 00:03:04]} {[%emt 00:00:01]} Bg7 {[%clk
00:02:59]} 4. Ne2 {[%clk 00:03:05]} Nf6 {[%clk 00:03:00]} {[%emt 00:00:01]} 5.
c3 {[%clk 00:03:02]} {[%emt 00:00:05]} O-O {[%clk 00:03:00]} {[%emt 00:00:02]}
6. O-O {[%clk 00:03:01]} {[%emt 00:00:02]} e5 {[%clk 00:03:01]} {[%emt
00:00:02]} 7. d4 {[%clk 00:03:03]} {[%emt 00:00:01]} Nbd7 {[%clk 00:03:01]}
{[%emt 00:00:01]} 8. h3 {[%clk 00:03:03]} {[%emt 00:00:02]} c6 {[%clk
00:03:00]} {[%emt 00:00:03]} 9. Be3 {[%clk 00:03:01]} {[%emt 00:00:04]} Re8
{[%clk 00:03:00]} {[%emt 00:00:02]} 10. Qd3 {[%clk 00:03:00]} {[%emt 00:00:02]}
d5 {[%clk 00:02:44]} {[%emt 00:00:18]} 11. exd5 {[%clk 00:02:51]} {[%emt
00:00:12]} cxd5 {[%clk 00:02:43]} {[%emt 00:00:03]} 12. Nd2 {[%clk 00:02:22]}
{[%emt 00:00:31]} e4 {[%clk 00:02:15]} {[%emt 00:00:30]} 13. Qc2 {[%clk
00:02:21]} {[%emt 00:00:03]} b6 {[%clk 00:02:12]} {[%emt 00:00:05]} 14. c4
{[%clk 00:02:19]} {[%emt 00:00:05]} Ba6 {[%clk 00:02:09]} {[%emt 00:00:05]} 15.
Qa4 {[%clk 00:02:12]} {[%emt 00:00:08]} Qc8 {[%clk 00:01:58]} {[%emt 00:00:13]}
16. b3 {[%clk 00:01:56]} {[%emt 00:00:18]} Qb7 {[%clk 00:01:51]} {[%emt
00:00:09]} 17. Nc3 {[%clk 00:01:48]} {[%emt 00:00:11]} Rac8 {[%clk 00:01:48]}
{[%emt 00:00:05]} 18. Rfc1 {[%clk 00:01:36]} {[%emt 00:00:14]} dxc4 {[%clk
00:01:23]} {[%emt 00:00:27]} 19. bxc4 {[%clk 00:01:33]} {[%emt 00:00:05]} Rc7
{[%clk 00:01:13]} {[%emt 00:00:11]} 20. Rab1 {[%clk 00:01:30]} {[%emt
00:00:05]} Rec8 {[%clk 00:01:11]} {[%emt 00:00:04]} 21. Ncxe4 {[%clk 00:01:24]}
{[%emt 00:00:08]} Qc6 {[%clk 00:00:36]} {[%emt 00:00:37]} 22. Qxa6 {[%clk
00:01:17]} {[%emt 00:00:09]} Nxe4 {[%clk 00:00:37]} {[%emt 00:00:01]} 23. Nxe4
{[%clk 00:01:15]} {[%emt 00:00:04]} Qe6 {[%clk 00:00:38]} 24. d5 {[%clk
00:01:10]} {[%emt 00:00:07]} Qe5 {[%clk 00:00:38]} {[%emt 00:00:02]} 25. Bf4
{[%clk 00:01:10]} {[%emt 00:00:02]} 1-0

[Event "Campeonato de España Universitario Relámpago"]
[Site "Zaragoza, Spain"]
[Date "2024.04.24"]
[Round "4.2"]
[White "Domingo Nunez, Alejandro"]
[Black "Lopez Mulet, Inigo"]
[Result "0-1"]
[TimeControl "3 min + 2 sg"]
[WhiteFideId "22245561"]
[BlackFideId "22235620"]
[WhiteElo "2252"]
[BlackElo "2347"]

1. Nf3 {[%clk 00:03:02]} {[%emt 00:00:01]} d5 {[%clk 00:02:59]} {[%emt
00:00:06]} 2. g3 {[%clk 00:03:03]} {[%emt 00:00:01]} g6 {[%clk 00:02:59]} 3. d4
{[%clk 00:03:03]} {[%emt 00:00:02]} Bg7 {[%clk 00:03:00]} {[%emt 00:00:02]} 4.
Bg2 {[%clk 00:03:04]} {[%emt 00:00:01]} Nf6 {[%clk 00:03:01]} {[%emt 00:00:01]}
5. O-O {[%clk 00:03:04]} {[%emt 00:00:02]} O-O {[%clk 00:03:01]} {[%emt
00:00:01]} 6. c4 {[%clk 00:03:05]} {[%emt 00:00:01]} dxc4 {[%clk 00:03:01]}
{[%emt 00:00:03]} 7. Na3 {[%clk 00:03:06]} {[%emt 00:00:01]} c3 {[%clk
00:02:54]} {[%emt 00:00:08]} 8. bxc3 {[%clk 00:03:07]} {[%emt 00:00:01]} c5
{[%clk 00:02:56]} 9. Bb2 {[%clk 00:02:58]} {[%emt 00:00:10]} Qa5 {[%clk
00:02:47]} {[%emt 00:00:11]} 10. Nc4 {[%clk 00:02:42]} {[%emt 00:00:17]} Qa6
{[%clk 00:02:47]} {[%emt 00:00:02]} 11. Ne3 {[%clk 00:02:41]} {[%emt 00:00:02]}
Nbd7 {[%clk 00:01:46]} {[%emt 00:01:03]} 12. d5 {[%clk 00:02:26]} {[%emt
00:00:17]} Nb6 {[%clk 00:01:31]} {[%emt 00:00:17]} 13. Ne5 {[%clk 00:01:00]}
{[%emt 00:01:28]} Nfd7 {[%clk 00:01:29]} {[%emt 00:00:04]} 14. Nxd7 {[%clk
00:00:48]} {[%emt 00:00:14]} Bxd7 {[%clk 00:01:29]} {[%emt 00:00:02]} 15. Qc2
{[%clk 00:00:46]} {[%emt 00:00:03]} Bb5 {[%clk 00:01:14]} {[%emt 00:00:17]} 16.
Rfe1 {[%clk 00:00:35]} {[%emt 00:00:13]} Rfd8 {[%clk 00:01:07]} {[%emt
00:00:09]} 17. Rac1 {[%clk 00:00:27]} {[%emt 00:00:10]} Nc4 {[%clk 00:01:00]}
{[%emt 00:00:10]} 18. Nxc4 {[%clk 00:00:06]} {[%emt 00:00:23]} Bxc4 {[%clk
00:01:01]} 19. e4 {[%clk 00:00:06]} {[%emt 00:00:01]} Qxa2 {[%clk 00:01:01]}
{[%emt 00:00:02]} 20. Ra1 {[%clk 00:00:07]} {[%emt 00:00:01]} Qb3 {[%clk
00:01:02]} {[%emt 00:00:01]} 21. Qd2 {[%clk 00:00:08]} Qb5 {[%clk 00:00:52]}
{[%emt 00:00:13]} 22. e5 {[%clk 00:00:04]} {[%emt 00:00:06]} Bd3 {[%clk
00:00:33]} {[%emt 00:00:21]} 23. Rad1 {[%clk 00:00:03]} {[%emt 00:00:03]} c4
{[%clk 00:00:34]} 24. Ba3 {[%clk 00:00:04]} {[%emt 00:00:02]} Re8 {[%clk
00:00:18]} {[%emt 00:00:18]} 25. d6 {[%clk 00:00:03]} {[%emt 00:00:03]} Qb3
{[%clk 00:00:09]} {[%emt 00:00:11]} 26. Bc5 {[%clk 00:00:03]} {[%emt 00:00:02]}
exd6 {[%clk 00:00:09]} {[%emt 00:00:02]} 27. Bxd6 {[%clk 00:00:03]} {[%emt
00:00:02]} Rad8 {[%clk 00:00:09]} {[%emt 00:00:02]} 28. Rc1 {[%clk 00:00:04]}
{[%emt 00:00:02]} a5 {[%clk 00:00:09]} {[%emt 00:00:02]} 29. h4 {[%clk
00:00:04]} {[%emt 00:00:02]} h5 {[%clk 00:00:09]} {[%emt 00:00:02]} 30. Ra1
{[%clk 00:00:03]} {[%emt 00:00:03]} Kh7 {[%clk 00:00:08]} {[%emt 00:00:03]} 31.
Ra3 {[%clk 00:00:04]} Qb5 {[%clk 00:00:09]} {[%emt 00:00:01]} 32. Rea1 {[%clk
00:00:04]} {[%emt 00:00:02]} b6 {[%clk 00:00:09]} 33. f4 {[%clk 00:00:03]}
{[%emt 00:00:04]} Rxd6 {[%clk 00:00:10]} {[%emt 00:00:02]} 34. exd6 {[%emt
00:00:01]} Re2 {[%clk 00:00:10]} {[%emt 00:00:01]} 35. Qd1 {[%emt 00:00:04]}
Qc5+ {[%emt 00:00:14]} 0-1

[Event "Campeonato de España Universitario Relámpago"]
[Site "Zaragoza, Spain"]
[Date "2024.04.24"]
[Round "4.3"]
[White "Luque Saiz, Andres"]
[Black "Vela Frago, Alberto"]
[Result "0-1"]
[TimeControl "3 min + 2 sg"]
[WhiteFideId "24510793"]
[BlackFideId "24531685"]
[WhiteElo "2346"]
[BlackElo "2203"]

1. e4 {[%clk 00:03:03]} e5 {[%clk 00:03:03]} {[%emt 00:00:02]} 2. Nf3 {[%clk
00:03:04]} {[%emt 00:00:01]} Nf6 {[%clk 00:03:03]} 3. d3 {[%clk 00:03:05]}
{[%emt 00:00:01]} Nc6 {[%clk 00:03:03]} {[%emt 00:00:02]} 4. Nbd2 {[%clk
00:02:53]} {[%emt 00:00:14]} d5 {[%clk 00:03:02]} {[%emt 00:00:03]} 5. c3
{[%clk 00:02:49]} {[%emt 00:00:06]} Bc5 {[%clk 00:03:03]} {[%emt 00:00:01]} 6.
Be2 {[%clk 00:02:44]} {[%emt 00:00:07]} a5 {[%clk 00:03:04]} 7. O-O {[%clk
00:02:43]} {[%emt 00:00:03]} O-O {[%clk 00:03:05]} {[%emt 00:00:01]} 8. h3
{[%clk 00:02:41]} {[%emt 00:00:05]} Re8 {[%clk 00:03:05]} {[%emt 00:00:01]} 9.
Qc2 {[%clk 00:02:40]} {[%emt 00:00:03]} h6 {[%clk 00:03:06]} {[%emt 00:00:01]}
10. Rd1 {[%clk 00:02:39]} {[%emt 00:00:03]} Bb6 {[%clk 00:03:03]} {[%emt
00:00:05]} 11. Nf1 {[%clk 00:02:39]} {[%emt 00:00:03]} Be6 {[%clk 00:03:01]}
{[%emt 00:00:05]} 12. Be3 {[%clk 00:02:30]} {[%emt 00:00:10]} d4 {[%clk
00:02:59]} {[%emt 00:00:03]} 13. cxd4 {[%clk 00:02:20]} {[%emt 00:00:13]} exd4
{[%clk 00:03:00]} 14. Bf4 {[%clk 00:02:18]} {[%emt 00:00:04]} Nd7 {[%clk
00:03:01]} {[%emt 00:00:01]} 15. Qd2 {[%clk 00:02:12]} {[%emt 00:00:08]} a4
{[%clk 00:02:56]} {[%emt 00:00:07]} 16. Ng3 {[%clk 00:01:55]} {[%emt 00:00:19]}
Qe7 {[%clk 00:02:57]} {[%emt 00:00:01]} 17. Nh5 {[%clk 00:01:49]} {[%emt
00:00:08]} Ba5 {[%clk 00:02:45]} {[%emt 00:00:13]} 18. Qc1 {[%clk 00:01:48]}
{[%emt 00:00:03]} Qc5 {[%clk 00:02:45]} {[%emt 00:00:02]} 19. Qxc5 {[%clk
00:01:32]} {[%emt 00:00:19]} Nxc5 {[%clk 00:02:46]} {[%emt 00:00:01]} 20. Rac1
{[%clk 00:01:32]} {[%emt 00:00:01]} Nd7 {[%clk 00:02:42]} {[%emt 00:00:06]} 21.
a3 {[%clk 00:01:28]} {[%emt 00:00:07]} Bb3 {[%clk 00:02:42]} {[%emt 00:00:01]}
22. Rf1 {[%clk 00:01:27]} {[%emt 00:00:02]} g6 {[%clk 00:02:29]} {[%emt
00:00:15]} 23. Ng3 {[%clk 00:01:29]} Kg7 {[%clk 00:02:31]} 24. Bd2 {[%clk
00:01:21]} {[%emt 00:00:09]} Bxd2 {[%clk 00:02:19]} {[%emt 00:00:13]} 25. Nxd2
{[%clk 00:01:22]} Be6 {[%clk 00:02:21]} 26. f4 {[%clk 00:01:16]} {[%emt
00:00:10]} f6 {[%clk 00:02:11]} {[%emt 00:00:12]} 27. f5 {[%clk 00:00:54]}
{[%emt 00:00:24]} gxf5 {[%clk 00:02:02]} {[%emt 00:00:11]} 28. Nxf5+ {[%clk
00:00:55]} Bxf5 {[%clk 00:02:01]} {[%emt 00:00:03]} 29. Rxf5 {[%clk 00:00:56]}
{[%emt 00:00:01]} Nde5 {[%clk 00:02:00]} {[%emt 00:00:03]} 30. Nf3 {[%clk
00:00:52]} {[%emt 00:00:06]} Nxf3+ {[%clk 00:01:58]} {[%emt 00:00:03]} 31. Rxf3
{[%clk 00:00:53]} {[%emt 00:00:02]} Ra5 {[%clk 00:01:57]} {[%emt 00:00:04]} 32.
Rf2 {[%clk 00:00:43]} {[%emt 00:00:11]} Ree5 {[%clk 00:01:57]} {[%emt
00:00:01]} 33. Bg4 {[%clk 00:00:42]} {[%emt 00:00:03]} Rec5 {[%clk 00:01:56]}
{[%emt 00:00:03]} 34. Rcf1 {[%clk 00:00:41]} {[%emt 00:00:03]} Ne5 {[%clk
00:01:47]} {[%emt 00:00:11]} 35. Rxf6 {[%clk 00:00:36]} {[%emt 00:00:07]} Rc6
{[%clk 00:01:48]} 36. Rxc6 {[%clk 00:00:18]} {[%emt 00:00:21]} Nxc6 {[%clk
00:01:49]} {[%emt 00:00:01]} 37. Rc1 {[%clk 00:00:17]} {[%emt 00:00:03]} Rb5
{[%clk 00:01:47]} {[%emt 00:00:03]} 38. Rc2 {[%clk 00:00:18]} {[%emt 00:00:01]}
Kf6 {[%clk 00:01:48]} 39. Kf2 {[%clk 00:00:19]} {[%emt 00:00:02]} Ne5 {[%clk
00:01:48]} {[%emt 00:00:03]} 40. Be2 {[%clk 00:00:20]} {[%emt 00:00:01]} c5
{[%clk 00:01:46]} {[%emt 00:00:04]} 41. Kg3 {[%clk 00:00:11]} {[%emt 00:00:12]}
Rb3 {[%clk 00:01:46]} {[%emt 00:00:01]} 42. Rxc5 {[%clk 00:00:10]} {[%emt
00:00:03]} Rxb2 {[%clk 00:01:47]} 43. Bf3 {[%clk 00:00:08]} {[%emt 00:00:03]}
Rb3 {[%clk 00:01:40]} {[%emt 00:00:09]} 44. Rd5 {[%clk 00:00:08]} {[%emt
00:00:03]} Rxd3 {[%clk 00:01:40]} {[%emt 00:00:01]} 45. Kf4 {[%clk 00:00:08]}
{[%emt 00:00:03]} Ng6+ {[%clk 00:01:33]} {[%emt 00:00:09]} 46. Kg4 {[%clk
00:00:09]} Ne5+ {[%clk 00:01:19]} {[%emt 00:00:16]} 47. Kf4 {[%clk 00:00:11]}
Ng6+ {[%clk 00:01:20]} {[%emt 00:00:01]} 48. Kg3 {[%clk 00:00:12]} Rxa3 {[%clk
00:01:17]} {[%emt 00:00:05]} 49. Rxd4 {[%clk 00:00:13]} b5 {[%clk 00:01:15]}
{[%emt 00:00:03]} 50. Rd6+ {[%clk 00:00:15]} Kg7 {[%clk 00:01:13]} {[%emt
00:00:04]} 51. Rd7+ {[%clk 00:00:14]} {[%emt 00:00:03]} Kf8 {[%clk 00:01:10]}
{[%emt 00:00:04]} 52. Rd6 {[%clk 00:00:10]} {[%emt 00:00:07]} Kf7 {[%clk
00:01:11]} 53. Kg4 {[%clk 00:00:08]} {[%emt 00:00:03]} Ne5+ {[%clk 00:01:12]}
54. Kf4 {[%clk 00:00:09]} {[%emt 00:00:01]} Nxf3 {[%clk 00:00:54]} {[%emt
00:00:20]} 55. gxf3 {[%clk 00:00:09]} Ra1 {[%clk 00:00:51]} {[%emt 00:00:06]}
56. Kf5 {[%clk 00:00:08]} {[%emt 00:00:04]} a3 {[%clk 00:00:46]} {[%emt
00:00:07]} 57. e5 {[%clk 00:00:06]} {[%emt 00:00:04]} a2 {[%clk 00:00:40]}
{[%emt 00:00:08]} 58. Ra6 {[%clk 00:00:03]} {[%emt 00:00:05]} b4 {[%clk
00:00:36]} {[%emt 00:00:06]} 59. Ra7+ {[%clk 00:00:04]} Ke8 {[%clk 00:00:37]}
60. Ke6 {[%clk 00:00:04]} {[%emt 00:00:02]} Kd8 {[%clk 00:00:38]} 61. f4 {[%clk
00:00:03]} {[%emt 00:00:03]} b3 {[%clk 00:00:36]} {[%emt 00:00:04]} 62. Ra8+
{[%clk 00:00:04]} {[%emt 00:00:01]} Kc7 {[%clk 00:00:37]} 63. Ra7+ {[%clk
00:00:04]} {[%emt 00:00:03]} Kb6 {[%clk 00:00:37]} {[%emt 00:00:01]} 64. Ra8
{[%clk 00:00:05]} Rf1 {[%clk 00:00:37]} {[%emt 00:00:02]} 65. f5 {[%clk
00:00:04]} {[%emt 00:00:03]} a1=Q {[%clk 00:00:37]} {[%emt 00:00:02]} 66. Rxa1
{[%clk 00:00:05]} {[%emt 00:00:01]} Rxa1 {[%clk 00:00:38]} {[%emt 00:00:01]} 67.
f6 {[%clk 00:00:07]} b2 {[%clk 00:00:37]} {[%emt 00:00:03]} 68. f7 {[%clk
00:00:07]} {[%emt 00:00:01]} Ra8 {[%clk 00:00:37]} {[%emt 00:00:02]} 69. Kf6
{[%clk 00:00:07]} {[%emt 00:00:02]} b1=Q {[%clk 00:00:37]} {[%emt 00:00:02]} 70.
e6 {[%clk 00:00:09]} Qf1 {[%clk 00:00:38]} {[%emt 00:00:01]} 71. Kg7 {[%clk
00:00:10]} {[%emt 00:00:01]} Qg2+ {[%clk 00:00:39]} 72. Kh7 {[%clk 00:00:11]}
{[%emt 00:00:01]} Qe4+ {[%clk 00:00:39]} {[%emt 00:00:02]} 73. Kg7 {[%clk
00:00:12]} Qxe6 {[%clk 00:00:39]} {[%emt 00:00:03]} 0-1

[Event "Campeonato de España Universitario Relámpago"]
[Site "Zaragoza, Spain"]
[Date "2024.04.24"]
[Round "4.4"]
[White "Garcia Sancho, Josep"]
[Black "Quispe Arteaga, Gabriel"]
[Result "0-1"]
[TimeControl "3 min + 2 sg"]
[WhiteFideId "32010168"]
[BlackFideId "32059809"]
[WhiteElo "2003"]
[BlackElo "2304"]

1. c4 {[%clk 00:03:02]} g6 {[%clk 00:03:04]} {[%emt 00:00:01]} 2. Nc3 {[%clk
00:03:03]} {[%emt 00:00:01]} Bg7 {[%clk 00:03:05]} 3. g3 {[%clk 00:03:04]}
{[%emt 00:00:02]} f5 {[%clk 00:03:00]} {[%emt 00:00:07]} 4. Bg2 {[%clk
00:03:05]} Nf6 {[%clk 00:03:01]} 5. e3 {[%clk 00:03:06]} O-O {[%clk 00:03:02]}
{[%emt 00:00:02]} 6. Nge2 {[%clk 00:03:07]} d6 {[%clk 00:03:03]} {[%emt
00:00:01]} 7. O-O {[%clk 00:03:08]} {[%emt 00:00:01]} Nbd7 {[%clk 00:03:04]}
{[%emt 00:00:01]} 8. b3 {[%clk 00:03:06]} {[%emt 00:00:04]} e5 {[%clk
00:03:02]} {[%emt 00:00:04]} 9. Bb2 {[%clk 00:03:07]} e4 {[%clk 00:02:57]}
{[%emt 00:00:06]} 10. d3 {[%clk 00:03:03]} {[%emt 00:00:05]} Ne5 {[%clk
00:02:59]} {[%emt 00:00:01]} 11. dxe4 {[%clk 00:02:41]} {[%emt 00:00:24]} fxe4
{[%clk 00:02:59]} {[%emt 00:00:01]} 12. Nxe4 {[%clk 00:02:28]} {[%emt
00:00:15]} Nxe4 {[%clk 00:02:58]} {[%emt 00:00:03]} 13. Bxe4 {[%clk 00:02:27]}
{[%emt 00:00:02]} Bh3 {[%clk 00:02:36]} {[%emt 00:00:24]} 14. Re1 {[%clk
00:01:49]} {[%emt 00:00:40]} Bg4 {[%clk 00:01:41]} {[%emt 00:00:57]} 15. Bxe5
{[%clk 00:01:41]} {[%emt 00:00:10]} Bxe5 {[%clk 00:01:40]} {[%emt 00:00:04]} 16.
Qd5+ {[%clk 00:01:37]} {[%emt 00:00:06]} Kh8 {[%clk 00:01:38]} {[%emt
00:00:04]} 17. Nf4 {[%clk 00:01:35]} {[%emt 00:00:04]} Bxa1 {[%clk 00:01:30]}
{[%emt 00:00:10]} 18. Rxa1 {[%clk 00:01:34]} {[%emt 00:00:03]} Qf6 {[%clk
00:01:31]} {[%emt 00:00:01]} 19. Rc1 {[%clk 00:01:19]} {[%emt 00:00:16]} g5
{[%clk 00:01:30]} {[%emt 00:00:03]} 20. Nd3 {[%clk 00:01:07]} {[%emt 00:00:14]}
c6 {[%clk 00:01:31]} {[%emt 00:00:01]} 21. Qd4 {[%clk 00:01:00]} {[%emt
00:00:09]} Qxd4 {[%clk 00:01:30]} {[%emt 00:00:02]} 22. exd4 {[%clk 00:01:01]}
{[%emt 00:00:01]} Rae8 {[%clk 00:01:30]} {[%emt 00:00:02]} 23. Re1 {[%clk
00:00:50]} {[%emt 00:00:13]} Kg7 {[%clk 00:01:14]} {[%emt 00:00:18]} 24. f3
{[%clk 00:00:46]} {[%emt 00:00:06]} Bf5 {[%clk 00:01:02]} {[%emt 00:00:14]} 25.
Kg2 {[%clk 00:00:43]} {[%emt 00:00:05]} g4 {[%clk 00:00:49]} {[%emt 00:00:15]}
26. Bxf5 {[%clk 00:00:22]} {[%emt 00:00:23]} gxf3+ {[%clk 00:00:50]} {[%emt
00:00:01]} 27. Kxf3 {[%clk 00:00:20]} {[%emt 00:00:04]} Rxf5+ {[%clk 00:00:50]}
{[%emt 00:00:02]} 28. Kg2 {[%clk 00:00:15]} {[%emt 00:00:06]} Rxe1 {[%clk
00:00:51]} {[%emt 00:00:02]} 29. Nxe1 {[%clk 00:00:17]} Ra5 {[%clk 00:00:52]}
{[%emt 00:00:01]} 30. a4 {[%clk 00:00:17]} {[%emt 00:00:02]} b5 {[%clk
00:00:53]} 31. axb5 {[%clk 00:00:08]} {[%emt 00:00:10]} cxb5 {[%clk 00:00:55]}
32. c5 {[%clk 00:00:09]} dxc5 {[%clk 00:00:52]} {[%emt 00:00:05]} 33. dxc5
{[%clk 00:00:10]} Ra3 {[%clk 00:00:40]} {[%emt 00:00:13]} 34. Kf3 {[%clk
00:00:06]} {[%emt 00:00:06]} Rxb3+ {[%clk 00:00:38]} {[%emt 00:00:04]} 35. Ke4
{[%clk 00:00:08]} Rc3 {[%clk 00:00:32]} {[%emt 00:00:08]} 36. Kd5 {[%clk
00:00:09]} {[%emt 00:00:01]} b4 {[%clk 00:00:31]} {[%emt 00:00:03]} 37. Kd4
{[%clk 00:00:09]} {[%emt 00:00:02]} a5 {[%clk 00:00:26]} {[%emt 00:00:07]} 38.
Nd3 {[%clk 00:00:10]} Rc2 {[%clk 00:00:26]} {[%emt 00:00:02]} 39. Ne5 {[%clk
00:00:10]} {[%emt 00:00:03]} b3 {[%clk 00:00:25]} {[%emt 00:00:03]} 40. Nc4
{[%clk 00:00:07]} {[%emt 00:00:05]} Rxc4+ {[%clk 00:00:22]} {[%emt 00:00:05]}
0-1